Cogmind - Beta 14 X2 @@@ ROGUE MODE // 2024.07.31 @ 16:47:05 Player: szymekc Result: Destroyed by II-4IH(R) with Subdweller Beam Cannon Performance ------------- Evolutions (0) 0 Regions Visited (2) 400 Robots Destroyed (42) 210 Value Destroyed (943) 943 Prototype IDs (13) 260 Alien Tech Used (0) 0 Bonus (0) 0 TOTAL SCORE: 1813 Bonus ------- None Cogmind --------- Core Integrity 0/250 Matter 131/300 Energy 250/250 System Corruption 1% Temperature Cool (9) Movement Treading (260) Ox1 Location -10/Subcaves Parts ------- > --- POWER (1) -------- Ion Engine > --- PROPULSION (2) --- Spiked Treads Spiked Treads > --- UTILITY (2) ------ High-capacity Storage Unit Makeshift Light Armor Plating > --- WEAPON (2) ------- Light Cannon Battle Cannon > --- INVENTORY (20) --- Light Ion Engine Subdweller Power Source Light Treads Light Treads Light Treads Arachnoskeleton Subdweller Optics Scrap Shield Subdweller Laser Subdweller Beam Cannon Subdweller Beam Cannon Subdweller Machine Gun Subdweller Machine Gun Slug Cannon Grenade Launcher Subdweller Shrapnel Launcher Multitool Peak State ------------ > --- POWER ------------ Ion Engine > --- PROPULSION ------- Light Treads Light Treads > --- UTILITY ---------- High-capacity Storage Unit Makeshift Light Armor Plating > --- WEAPON ----------- Subdweller Machine Gun Makeshift Shrapnel Gun > --- INVENTORY -------- Ion Engine Light Ion Engine Light Treads Light Treads Light Treads Light Treads Arachnoskeleton Medium Storage Unit Improved Terrain Scanner EM Pulse Gun Beam Cannon Light Assault Rifle Barrage Gun Light Cannon Grenade Launcher Grenade Launcher Mining Laser Piercing Trap [Rating: 18] Favorites ----------- Power Ion Engine Engine Ion Engine Propulsion Light Treads Treads Light Treads Leg Aluminum Leg Utility High-capacity Storage Unit Device Heat Sink Storage High-capacity Storage Unit Protection Makeshift Light Armor Plating Weapon Subdweller Machine Gun Energy Gun EM Pulse Gun Energy Cannon Beam Cannon Ballistic Gun Subdweller Machine Gun Ballistic Cannon Light Cannon Launcher Grenade Launcher Build | -11 -10 -10 ------- Run | Yrd Mat Sub Slots Evolved . | . . . Power . | . . . Propulsion . | . . . Utility . | . . . Weapon . | . . . Parts Attached 32 | 3 13 16 Power 2 | . 1 1 Engine 2 | . 1 1 Core . | . . . Reactor . | . . . Propulsion 10 | 2 4 4 Treads 10 | 2 4 4 Leg . | . . . Wheel . | . . . Hover . | . . . Flight . | . . . Utility 4 | . 3 1 Device 2 | . 2 . Storage 1 | . 1 . Processor . | . . . Hackware . | . . . Protection 1 | . . 1 Artifact . | . . . Weapon 16 | 1 5 10 Energy Gun 4 | . 2 2 Energy Cannon 1 | . . 1 Ballistic Gun 6 | 1 2 3 Ballistic Cannon 2 | . . 2 Launcher 3 | . 1 2 Special Weapon . | . . . Impact Weapon . | . . . Slashing Weapon . | . . . Piercing Weapon . | . . . Special Melee Weapon . | . . . Unidentified Prototypes . | . . . Parts Lost 1 | . . 1 Power . | . . . Propulsion . | . . . Utility . | . . . Weapon 1 | . . 1 Highest Loss Streak 1 | . . 1 To Critical Strikes . | . . . Average Slot Usage (%) 97 | . 93 99 Engine 14 | . 14 14 Treads 27 | . 27 28 Device 4 | . 8 3 Storage 14 | . 14 14 Protection 7 | . . 10 Energy Gun 4 | . 10 1 Ballistic Gun 16 | . 16 16 Ballistic Cannon 6 | . . 9 Naked Turns . | . . . Heaviest Build 55 | 13 50 55 Greatest Support 40 | 40 40 40 Greatest Overweight (x) 1 | . 1 1 Average Overweight (x) . | . . 1 Largest Inventory Capacity 20 | 8 20 20 Average Capacity 19 | 8 18 20 Most Carried 20 | 6 18 20 Average Carried 17 | 3 14 18 Final Capacity 20 | 8 20 20 Final Carried 20 | 5 15 20 Class Distribution -------------------- 86% | Mutant 13% | Derelict-Mutant Dominant Class ---------------- Mutant | -10/Materials Mutant | -10/Subcaves Resources | -11 -10 -10 ----------- Run | Yrd Mat Sub Matter Collected 947 | 239 341 367 Remotely . | . . . Salvage Created 1325 | 93 806 426 Parts 85 | 4 50 31 Haulers Intercepted 2 | . 2 . Recyclers Shooed 4 | . 4 . Parts Field Recycled . | . . . Retrieved Matter . | . . . Parts Self-Destructed 15 | . . 15 Prevented 8 | . . 8 Kills | -11 -10 -10 ------- Run | Yrd Mat Sub Combat Hostiles Destroyed 29 | . 13 16 Guns 24 | . 13 11 Cannons 2 | . . 2 AOE 3 | . . 3 Classes Destroyed 10 | 2 5 3 Worker 1 | . 1 . Tunneler 2 | 1 1 . Hauler 2 | . 2 . Recycler 4 | 1 3 . Turret 2 | . . 2 Watcher 2 | . 2 . Swarmer 12 | . 5 7 Grunt 10 | . 8 2 Sentry 1 | . . 1 Subdweller 6 | . . 6 Best Kill Streak 8 | 2 8 4 Combat Bots Only 4 | . 4 4 Max Kills in Single Turn 2 | 1 2 2 Gunslinging . | . . . Exploded 2 | . . 2 Melee . | . . . Uniques/NPCs Destroyed . | . . . Combat | -11 -10 -10 -------- Run | Yrd Mat Sub Hostile Shots Fired 157 | . 41 116 Missed 50 | . 6 44 Damage Taken 1472 | . 370 1102 Core 274 | . 43 231 Absorbed by Shields . | . . . Regen/Repaired (Parts) 146 | . 146 . Core Remaining (%) 100 | 100 . . Volleys Fired 132 | 3 63 66 Largest 2 | 2 2 2 Hottest 80 | 60 80 80 Shots Fired 237 | 6 122 109 Gun 201 | 6 121 74 Cannon 32 | . . 32 Launcher 4 | . 1 3 Special . | . . . Kinetic 153 | 3 79 71 Thermal 41 | 3 38 . Explosive 4 | . 1 3 Electromagnetic 39 | . 4 35 Robot Hit Streak 14 | 4 13 14 Robot Miss Streak 6 | 1 5 6 Penetration Max . | . . . Secondary Targets 2 | . 1 1 Max Gunslinging Chain 1 | . 1 1 Shots Hit Robots 141 | 5 73 63 Core Hits 70 | 3 35 32 Critical Kills . | . . . Critical Parts Destroyed 1 | . . 1 Critical Strikes 3 | . . 3 Destroy 1 | . . 1 Blast 2 | . . 2 Melee Attacks . | . . . Impact . | . . . Slashing . | . . . Piercing . | . . . Sneak Attacks . | . . . Combat Hostiles . | . . . Follow-up Attacks . | . . . Damage Inflicted 2378 | 57 1011 1310 Guns 1669 | 57 870 742 Cannons 398 | . . 398 Explosions 311 | . 141 170 Melee . | . . . Ramming . | . . . Kinetic 1490 | 35 582 873 Thermal 274 | 22 252 . Explosive 311 | . 141 170 Electromagnetic 303 | . 36 267 Impact . | . . . Slashing . | . . . Piercing . | . . . Highest Corruption 1 | . 1 1 Average Corruption 1 | . 1 1 Corruption Purged . | . . . Corruption Blocked . | . . . Effects 39 | . 6 33 Message Errors 10 | . 1 9 Matter Fused 9 | . 1 8 Heat Flow Errors 9 | . 3 6 Energy Discharges 3 | . . 3 Data Loss (minor) 5 | . 1 4 Data Loss (major) 1 | . . 1 Misfires 1 | . . 1 Alerts 1 | . . 1 Overload Shots . | . . . Overflow Damage 28 | . 24 4 Projectiles . | . . . Explosions 28 | . 24 4 Melee . | . . . Knockbacks 3 | . . 3 Impact . | . . . Kinetic 3 | . . 3 Secondary . | . . . Self-Inflicted Damage . | . . . Shots . | . . . Rammed . | . . . Targets Rammed . | . . . Kicked . | . . . Crushed . | . . . Highest Temperature 252 | . 252 250 Average Temperature 70 | . 58 87 Received Heat Transfer 456 | . 132 324 Siege Activations . | . . . Robots Corrupted . | . . . Combat Hostiles . | . . . Parts Fried 2 | . 1 1 Impact Corruptions . | . . . Robots Melted . | . . . Combat Hostiles . | . . . Parts Melted . | . . . Heat Transferred 625 | 50 575 . Parts Sabotaged . | . . . Parts Stolen . | . . . Parts Stripped . | . . . Power Chain Reactions . | . . . Alert | -11 -10 -10 ------- Run | Yrd Mat Sub Peak Influence 231 | 10 231 . Initial 6 | . 6 . Average 87 | 6 89 . Maximum Alert Level 1 | . 1 . Low Security (%) 83 | 100 83 . Level 1 16 | . 16 . Level 2 . | . . . Level 3 . | . . . Level 4 . | . . . Level 5 . | . . . High Security . | . . . Max Security . | . . . Squads Dispatched 4 | . 4 . Investigation 4 | . 4 . Extermination . | . . . Reinforcement . | . . . Assault . | . . . Garrison . | . . . Intercept . | . . . Searches Triggered . | . . . Construction Impeded . | . . . Haulers Reinforced . | . . . Active Scanning Responses . | . . . Cargo Convoy Interrupts . | . . . Stealth | -11 -10 -10 --------- Run | Yrd Mat Sub Distress Signals 1 | . 1 . Communications Jammed . | . . . Distress Signals . | . . . Times Spotted 37 | . 19 18 Peak Tracking Total 6 | . 3 6 Tactical Retreats 4 | . 2 2 Traps | -11 -10 -10 ------- Run | Yrd Mat Sub Traps Triggered 2 | . 1 1 Indirectly . | . . . Trap Hack Attempts . | . . . Triggered . | . . . Disarmed . | . . . Reprogrammed . | . . . Reused . | . . . Traps Extracted . | . . . Installed . | . . . Triggered . | . . . Most Traps Carried 1 | . . 1 Machines | -11 -10 -10 ---------- Run | Yrd Mat Sub Machines Disabled 8 | . 5 3 Max in Single Turn 2 | . 2 1 Machines Repaired . | . . . Machines Dismantled . | . . . Machines Sabotaged . | . . . Overloaded Fab Kills . | . . . Hacking | -11 -10 -10 --------- Run | Yrd Mat Sub Machines Accessed 12 | . 11 1 Terminals 8 | . 8 . Fabricators . | . . . Repair Stations 1 | . 1 . Recycling Units 2 | . 2 . Scanalyzers . | . . . Garrison Access . | . . . Total Hacks 33 | . 32 1 Successful 21 | . 20 1 Failed 12 | . 12 . Catastrophic 2 | . 2 . Database Lockouts . | . . . Manual 20 | . 20 . Terminals 22 | . 22 . Fabricators . | . . . Repair Stations 6 | . 6 . Recycling Units 4 | . 4 . Scanalyzers . | . . . Garrison Access . | . . . Terminal Hacks 6 | . 5 1 Robot Analysis 2 | . 2 . Prototype ID Bank 2 | . 2 . Zone Layout 1 | . 1 . Derelict Proto ID Bank 1 | . . 1 Fabricator Hacks . | . . . Repair Station Hacks 5 | . 5 . Scan Component 3 | . 3 . Repair 2 | . 2 . Recycling Unit Hacks . | . . . Scanalyzer . | . . . Garrison Access Hacks . | . . . Unauthorized Hacks 10 | . 10 . Terminals 8 | . 8 . Botnet 2 | . 2 . Operators 1 | . 1 . Skim 5 | . 5 . Fabricators . | . . . Repair Stations . | . . . Recycling Units 2 | . 2 . Tunnel 2 | . 2 . Scanalyzers . | . . . Garrison Access . | . . . Data Cores Recovered . | . . . Used . | . . . Hacking Detections 10 | . 10 . Full Trace Events 1 | . 1 . Feedback Events . | . . . Feedback Blocked . | . . . Robot Schematics Acquired . | . . . Robots Built . | . . . Authchips . | . . . Time . | . . . Total Robot Build Rating . | . . . Part Schematics Acquired . | . . . Parts Built . | . . . Authchips . | . . . Time . | . . . Total Part Build Rating . | . . . Parts Repaired 2 | . 2 . Time 52 | . 52 . Parts Recycled . | . . . Recycled Matter . | . . . Retrieved Matter . | . . . Retrieved Components . | . . . Parts Scanalyzed . | . . . Part Schematics Acquired . | . . . Parts Damaged . | . . . Bothacking | -11 -10 -10 ------------ Run | Yrd Mat Sub Used RIF Installer . | . . . Robots Hacked . | . . . Non-combat . | . . . Combat . | . . . Robot Hacks Applied . | . . . Relay Couplers Released . | . . . Fabnet Peak Effective % . | . . . Robots Rewired . | . . . Allies Hacked . | . . . Hacks Repelled . | . . . Allies | -11 -10 -10 -------- Run | Yrd Mat Sub Total Allies . | . . . Largest Group . | . . . Highest-Rated Group . | . . . Highest-Rated Ally . | . . . Total Orders . | . . . Ally Attacks . | . . . Total Damage . | . . . Kills . | . . . Allies Corrupted . | . . . Allies Melted . | . . . Intel | -11 -10 -10 ------- Run | Yrd Mat Sub Robot Analysis Total 2 | . 2 . Derelict Logs Recovered 2 | . . 2 Drone Launches . | . . . Drone Recoveries . | . . . Exploration | -11 -10 -10 ------------- Run | Yrd Mat Sub Turns Passed 5202 | 48 1790 3364 Spaces Moved 1932 | 20 652 1260 Core . | . . . Treads 1929 | 17 652 1260 Legs 3 | 3 . . Wheels . | . . . Hover . | . . . Flight . | . . . Fastest Speed 120 | 120 160 240 Average Speed 238 | 154 229 245 Slowest Speed 260 | 160 240 260 Overloaded Moves . | . . . Propulsion Burnouts . | . . . Robots Hopped . | . . . Cave-ins Triggered . | . . . Exploration Rate (%) 57 | 2 99 71 Regions Visited 2 Branch Regions 1 Pre-discovered Areas 6 | . 4 2 Known Exits Taken 1 | . 1 . Unknown Exits Taken 1 | 1 . . Scrap Searched 13 | . . 13 Spaces Dug 8 | . 8 . Terrain Destroyed 34 | . 18 16 Melee . | . . . Projectile . | . . . AOE 34 | . 18 16 Terrain Rammed . | . . . Walls Destroyed . | . . . Machines Disabled . | . . . Actions | -11 -10 -10 --------- Run | Yrd Mat Sub Total 2290 | 32 825 1433 Wait 126 | . 76 50 Move 1930 | 19 651 1260 Hop . | . . . Pick Up 39 | 3 16 20 Fast Attach 3 | . 2 1 Attach 7 | . 1 6 Detach . | . . . Swap 22 | 3 10 9 Drop 31 | 4 6 21 Fire 132 | 3 63 66 Melee . | . . . Ram . | . . . Kick . | . . . Crush . | . . . Escape Stasis . | . . . Rewire . | . . . Trap . | . . . Miscellaneous . | . . . Route ------- -11/Scrapyard -10/Materials (discovered 5 exits: [*Mat x3] / [*Min] / *Sub) -10/Subcaves (discovered 1 exit: [*Rec]) History --------- Turn | Location | Event 1 | -11/Scrapyard | Discovered new exit (range 3) 49 | -11/Scrapyard | Entered Materials 210 | -10/Materials | Discovered new exit (range 15) 300 | -10/Materials | Build established: Mutant 643 | -10/Materials | Discovered new exit (range 9) 919 | -10/Materials | Discovered new exit (range 4) 1153 | -10/Materials | Learned Storage emergency access door positions 1182 | -10/Materials | Discovered new exit (range 6) 1196 | -10/Materials | Learned 2 Mines zone layouts 1227 | -10/Materials | Loaded intel: 11 trap records 1248 | -10/Materials | Learned Storage trap positions 1257 | -10/Materials | Learned location of Mines (-9) 1259 | -10/Materials | Learned location of 1 exit from Recycling 1260 | -10/Materials | Learned 4 Recycling zone layouts 1270 | -10/Materials | Identified exit to Subcaves 1292 | -10/Materials | Learned location of Subcaves (-10) 1324 | -10/Materials | Learned 4 Subcaves zone layouts 1715 | -10/Materials | Repaired Lgt. Treads 1742 | -10/Materials | Repaired Lgt. Treads 1839 | -10/Materials | Entered Subcaves 2070 | -10/Subcaves | A swath of the cavern ceiling suddenly collapsed 2605 | -10/Subcaves | Visited 4L-MR0's lab 2633 | -10/Subcaves | Found Arachnoskeleton 2846 | -10/Subcaves | Disturbed a concealed Subdweller 2862 | -10/Subcaves | Learned location of Zion (-7) 3340 | -10/Subcaves | Shifting Twisted Machinery released Battle Cannon 3396 | -10/Subcaves | Shifting Twisted Machinery released Battle Rifle 3502 | -10/Subcaves | Ambushed by Subdwellers from Twisted Machinery 3854 | -10/Subcaves | Discovered new exit (range 16) 3865 | -10/Subcaves | Core integrity fell below 50% 4233 | -10/Subcaves | A swath of the cavern ceiling suddenly collapsed 4820 | -10/Subcaves | Build established: Derelict-Mutant 5198 | -10/Subcaves | Core integrity fell below 20% 5203 | -10/Subcaves | Destroyed by II-4IH(R) with Subdweller Beam Cannon Last Messages --------------- 04522_ Dropped Mak. System Shield. 04525_ Acquired Sub. Beam Cannon. 04533_ Dropped Lgt. Treads. 04538_ 8B-PBI(u) builds Twisted Machinery. 04547_ Acquired Sub. Shrapnel Launcher. 04569_ 8B-PBI(u) tweaks Twisted Machinery. 04636_ A%V&GB 04858_ System corrupted: Energy discharge (-82). 04926_ System corrupted: Substantial component data lost. 05006_ S NKKCHE5GJXSISZE M3Y4RPBKE89 05188_ II-4IH(R) Sub. Power Source blasted off. 05193_ Subatomizers dissect the Sub. Power Source. 05197_ System corrupted: IFF burst signal emitted. Map ----- +----------------------------------------------------+ | ????####"" " ###" "" ###### #### | | ????# ["""" ##"" "" ####?# ##?# | | ?????#""""""] "#" "" #?# #?## | | ??????#"""" ## #?# #?# ### | | ??????##""" "#"# ### "" ### #?# #?### | | " ????#""" ### ## "" ### ## ##### #??# | | ? ??#"""###" ####" #?## #####??# #?? | | ??# "##"""#?# #??## ##??## ##??????# #?? | | ????# """""#?# ##???###????###???????## ##?? | | ??### " """### #??????????????????????######??? | | ??""" " " ##??????????????????????????????? | | "" "" #???????????????????????????????? | | ? ## " " #???????????????????????????????? | | ???### "" #???????????????????????????????? | | ?????#### """ ##??????????????????????????????? | | ?????"??#"""" ## ##?????????????????????????????? | | ?????""?### " ### #?????????????????????????????? | | ??? "" ## ""## ###????????????????????????????? | | ??? "" #????????????????????????????? | | ???? ### " && ##????????????????????????????? | | ???""????# #????????????????????????????? | | ???""???## # #??????????##????????????????? | | ## "###" &# #????????? "#????????????????? | | ## "" """" ####????????# ##"#??????????????? | | ## "" """" #####;###?#" """""?????????????? | | #?# "" "" ## # @## """"?????????????? | | ### "" """" ???????????? | | <## "" ### R% #?????????????? | | #### ""##?# ### ######## ###?????????????? | | #??#### #???# #####?????????????????????????? | | #?????###???## #????????????????????????????? | | #????????#### ###????????????????????????????? | | #????##### ##??????????????????????????????? | | ????## #???????????????????????????????? | | ???## ########???????????????????????????????? | | ##?# ##??????????????????????????????????????? | | #?# #???????????????????????????????????????? | | #### #???????????????????????????????????????? | | ### ###?????????????????????????????????????? | | ### #?????????????????????????????????????? | | ### #?????????????????????????????????????? | | ## ##?????????????????????????????????????? | | ## ##?????????????????????????????????????? | | ## ##????????????????????????????????????? | | #????????????????????????????????????? | | #????????????????????????????????????? | | ###????????????????????????????????????? | | ##??????????????????????????????????????? | | ####???????????????????????????????????????? | | ##??????????????????????????????????????????? | +----------------------------------------------------+ Best States ------------- Heat Dissipation 35 Energy Generation 10 Energy Capacity 250 Matter Stores 300 Matter Capacity 300 Sight Range 16 Terrain Scan Range 16 Terrain Scan Density 10 Armor Coverage 100 Evasion (%) 40 Recoil Reduction 2 Item Schematics ----------------- None Robot Schematics ------------------ None Fabricated ------------ Nothing Alien Tech Used ----------------- None Achievements -------------- None Challenges ------------ None Game ------ Seed GuidanceCentriumInitializer Manual? 0 Play Time 00:25:34 Cumulative 325.2 hours Start 2024.07.31 @ 16:23:43 End 2024.07.31 @ 16:47:05 Sessions 1 Manual Loads 0 Difficulty Rogue Special Mode None Game No. 117 Rogue 115 Adventurer 2 Explorer 0 Win Type - Total 15 Types 6/0/7/1/0/0/0/1/0 Lore% 53 Gallery% 81 Achievement% 75 Wizard Run 0 Options --------- Layout 0 ASCII 0 Keyboard 0 Movement Numpad Keybinds 0 Fullscreen 2 Font 24/Smallcaps Map View 76x50 Zoom Use 0% Tactical HUD 1 Map Filters NONE Filters NONE Steam 1 RUN: 2172bc0d-5ab9-4ca0-a58f-a7da6f038bd3